[Event "TUR-ch U13-18 Open 2023"]
[Site "Antalya"]
[Date "2023.01.23"]
[Round "3"]
[White "Sezis, Doruk"]
[Black "Taspinar, Yanki"]
[Result "0-1"]
[ECO "E03"]
[WhiteElo "1743"]
[BlackElo "2275"]
[Annotator "TA"]
[PlyCount "93"]
[EventDate "2023.01.17"]
[EventType "swiss"]
[EventCountry "TUR"]
[SourceTitle "playchess.com"]
[Source "ChessBase"]
[SourceQuality "1"]
[TimeControl "5400+30"]

{[%evp 15,93,-37,-45,-37,-35,-35,-33,-52,-38,-43,-33,-48,-27,-47,-27,-53,-29,-45,-38,-115,-113,-98,-15,-16,-10,-14,13,16,27,-4,-8,-5,0,-8,-8,-16,-20,-106,-62,-77,-42,-64,-40,-81,-42,-47,-32,-39,-16,-19,-19,-16,0,0,0,0,16,-73,-69,-63,-57,-98,-66,-66,-69,-222,-222,-309,0,-265,-258,-414,-325,-331,-322,-300,-217,-458,-449,-350]} 1. c4 {[%emt 0:01:00]} e6 {[%emt 0:07:00]} 2. Nf3 {[%emt 0:00:30]} d5 {[%emt 0:00:30]} 3. g3 {[%emt 0:00:30]} Nf6 {[%emt 0:00:30]} 4. Bg2 {[%emt 0:00:30]} dxc4 {[%emt 0:00:00]} 5. Qc2 {[%emt 0:00:00]} Nbd7 {[%emt 0:01:00]} 6. Qxc4 {[%emt 0:01:00]} a6 {[%emt 0:00:30]} 7. d4 {[%emt 0:00:30]} b5 {[%emt 0:15:30]} 8. Qc2 {[%emt 0:23:30]} Bb7 {[%emt 0:01:30]} 9. Be3 {[%emt 0:20:30] E03: Open Catalan: 5 Qa4+ Nbd7 6 Qxc4.} Rc8 {[%emt 0:05:30]} 10. O-O {[%emt 0:11:30]} c5 {[%emt 0:11:30]} 11. Qd1 {[%emt 0:03:30] Black is slightly better.} c4 {[%emt 0:08:30]} 12. a3 {[%emt 0:04:30]} Be7 {[%emt 0:01:30]} 13. Nc3 $1 {[%emt 0:00:30]} O-O {[%emt 0:01:30]} 14. Qc2 {[%emt 0:01:30] [#]} Bc6 $146 {[%emt 0:03:30]} ({Predecessor:} 14... Nb6 15. Rfd1 Qe8 16. Bg5 a5 17. Bxf6 Bxf6 18. Ng5 Bxg5 19. Bxb7 Rc7 20. Bg2 b4 21. axb4 axb4 {0-1 Dimitrov Iliev,I-Padevsky,N BUL-ch13 Sofia 1959 (12)}) 15. Rfd1 {[%emt 0:07:30]} Qc7 {[%emt 0:02:30]} (15... a5 $5 {[%cal Rb5b4]}) 16. Bf4 {[%emt 0:03:06]} Qb7 {[%emt 0:00:30]} 17. b3 {[%emt 0:00:30]} (17. Nh4 $15) 17... cxb3 {[%emt 0:00:30]} 18. Qxb3 {[%emt 0:00:30]} Nd5 {[%emt 0:00:30]} ({Black should try} 18... Rfd8 $17 19. Ne1 Nb6) 19. Ne5 $1 $11 {[%emt 0:12:10]} Nxe5 {[%emt 0:20:50][%cal Bd7e5,Be5g6,Bg6e7,Be7d5,Bd5b6,Bb6c4][%mdl 32]} (19... Nxc3 {seems wilder.} 20. Nxc6 Nxe2+ 21. Kf1 Rxc6 22. Kxe2 Nb6) 20. Nxd5 {[%emt 0:00:52]} Ng6 {[%emt 0:09:07][%cal Rc6d5]} 21. Nxe7+ {[%emt 0:02:37]} Nxe7 {[%emt 0:01:27] Black is weak on the dark squares} 22. Bxc6 {[%emt 0:01:02]} (22. f3 $5 {[%cal Re2e4]}) 22... Rxc6 {[%emt 0:00:30]} 23. Rac1 {[%emt 0:00:30]} Rfc8 {[%emt 0:00:30]} 24. Rc5 {[%emt 0:00:30]} Nd5 {[%emt 0:00:30]} 25. Qc2 {[%emt 0:01:12]} Nb6 {[%emt 0:06:11]} 26. Rb1 {[%emt 0:01:43]} (26. Qd3 $11 {remains equal.}) 26... Qd7 {[%emt 0:00:44]} 27. Rc1 {[%emt 0:00:50][%cal Rc5c6]} Nc4 {[%emt 0:00:30]} (27... Rxc5 {looks sharper.} 28. dxc5 Nc4 29. Qd3 Qd5) 28. Rxc6 {[%emt 0:00:30]} Qxc6 {[%emt 0:00:30]} 29. e4 {[%emt 0:00:30]} Rd8 {[%emt 0:00:30]} 30. Be3 {[%emt 0:00:30]} Qd6 {[%emt 0:00:30]} 31. a4 {[%emt 0:00:30]} Qa3 {[%emt 0:00:30]} 32. Qc3 {[%emt 0:00:30]} Qxc3 {[%emt 0:00:30]} (32... Qxa4 $2 33. Ra1 b4 34. Rxa4 $18) 33. Rxc3 {[%emt 0:00:30]} Nxe3 {[%emt 0:01:04]} 34. axb5 {[%emt 0:01:51][%mdl 4096] Endgame b6 is the strong threat. KRN-KR} Nd1 {[%emt 0:00:30][%mdl 64] [#] Zwischenzug} 35. Rc1 {[%emt 0:00:30] Threatens to win with b6.} Nxf2 {[%emt 0:00:30]} 36. Kxf2 {[%emt 0:00:30]} (36. bxa6 $11 Ng4 37. a7) 36... axb5 {[%emt 0:00:30][%cal Ba6b5,Bb5b4][%mdl 32] KR-KR} (36... Rxd4 $2 {is a self mate.} 37. Rc8+) 37. Ke3 {[%emt 0:00:30]} Rb8 {[%emt 0:00:15]} 38. d5 {[%emt 0:00:00]} exd5 {[%emt 0:00:30]} 39. exd5 {[%emt 0:00:00]} Kf8 {[%emt 0:00:30]} 40. Kd4 $2 {[%emt 0:00:30] [#]} (40. d6 $15) 40... b4 $1 $19 {[%emt 0:00:30] Hoping for ...b3.} 41. Rb1 {[%emt 0:00:30]} Ke7 {[%emt 0:00:30] And now ...Kd6 would win.} 42. Kc4 $2 {[%emt 0:00:30][%mdl 8192]} (42. Rb3 $1 $11 {and White has nothing to worry.}) 42... Kd6 {[%emt 0:00:00][%cal Ob4b3] White must now prevent ...b3!} 43. Rb3 $2 {[%emt 0:00:00]} (43. Kb3 {is the only way for White.}) 43... Rb7 {[%emt 0:00:00]} 44. g4 {[%emt 0:00:00]} f6 {[%emt 0:01:41][%cal Bf7f6,Bf6f5][%mdl 32]} 45. h4 {[%emt 0:00:05]} Rb8 {[%emt 0:00:29]} 46. g5 $2 {[%emt 0:00:30]} (46. Kd4 {was the only chance.}) 46... f5 {[%emt 0:00:30]} 47. h5 {[%emt 0:01:30] Weighted Error Value: White=0.38/Black=0.14 (very precise)} 0-1

[Event "TUR-ch U13-18 Open 2023"]
[Site "Antalya"]
[Date "2023.01.23"]
[Round "3"]
[White "Dolek, Gokalp Deniz"]
[Black "Kazik, Oguz Kagan"]
[Result "1-0"]
[ECO "B36"]
[WhiteElo "1740"]
[BlackElo "2053"]
[Annotator "TA"]
[PlyCount "81"]
[EventDate "2023.01.17"]
[EventType "swiss"]
[EventCountry "TUR"]
[SourceTitle "playchess.com"]
[Source "ChessBase"]
[SourceQuality "1"]
[TimeControl "5400+30"]

{[%evp 18,81,35,31,60,47,58,58,68,56,88,29,45,30,85,2,85,96,213,220,312,289,426,191,195,133,327,329,332,327,351,331,335,289,365,310,336,241,252,245,256,189,191,172,173,181,201,134,152,103,108,104,123,113,107,55,75,76,416,415,385,387,604,480,487,472]} 1. e4 {[%emt 0:01:00]} c5 {[%emt 0:01:00]} 2. Nf3 {[%emt 0:00:30]} Nc6 {[%emt 0:00:30]} 3. d4 {[%emt 0:00:30]} cxd4 {[%emt 0:00:30]} 4. Nxd4 {[%emt 0:00:30]} g6 {[%emt 0:00:00]} 5. c4 {[%emt 0:00:00]} Nf6 {[%emt 0:00:00]} 6. Nc3 {[%emt 0:00:00]} Nxd4 {[%emt 0:00:00]} 7. Qxd4 {[%emt 0:00:30]} d6 {[%emt 0:00:00]} 8. Be3 {[%emt 0:00:00]} Bg7 {[%emt 0:00:00]} 9. f3 {[%emt 0:00:00]} O-O {[%emt 0:00:00]} 10. Qd2 {[%emt 0:00:30]} a5 {[%emt 0:00:30] B36: Sicilian: Maroczy Bind: Gurgenidze System.} 11. Na4 {[%emt 0:00:00]} Nd7 {[%emt 0:10:30][%cal Od7c5]} 12. O-O-O {[%emt 0:03:00]} Qc7 {[%emt 0:03:30] White is slightly better.} 13. Nc3 {[%emt 0:06:30]} a4 {[%emt 0:07:30] [#]} 14. Nb5 $146 {[%emt 0:10:30]} (14. Nd5 $16 Qd8 15. Kb1) ({Predecessor:} 14. Nd5 Qd8 15. h4 a3 16. b3 Nc5 17. Bxc5 dxc5 18. Nf6+ Bxf6 19. Qxd8 Rxd8 20. Rxd8+ {1-0 Villa Tornero,A (2050)-Arakelyan,M (1791) EU-ch U12 30th 2022 (6)}) 14... Qb8 {[%emt 0:10:30]} 15. Kb1 {[%emt 0:02:30]} Nc5 {[%emt 0:02:30]} (15... Ne5 $11) 16. g4 {[%emt 0:02:30]} (16. h4 $16) 16... Be6 {[%emt 0:09:30]} (16... a3 $1 $11) 17. h4 $16 {[%emt 0:11:30][%cal Bh2h4,Bh4h5,Bh5g6][%mdl 32]} Rc8 {[%emt 0:10:30]} (17... a3 $16) 18. h5 $1 $18 {[%emt 0:03:30]} a3 {[%emt 0:01:30] [#]} (18... Nd7 $142 19. hxg6 fxg6) 19. hxg6 $1 {[%emt 0:06:30]} (19. bxa3 Nd7 $16) (19. Nxa3 Qa7 $16) 19... hxg6 {[%emt 0:11:30]} (19... fxg6 {is a better defense.} 20. Bd4 Bf8 21. Nxa3 (21. bxa3 Bd7 $18) (21. Qh2 h6 $18) 21... Qc7) 20. Bd4 {[%emt 0:01:30]} (20. bxa3 Rc6 21. g5 (21. Qh2 f6 $16) 21... Bd7 $16) (20. Nxa3 Qa7 21. Bd4 (21. Qh2 Qb6 $16) 21... f6 $16) (20. Qh2 $142) 20... f6 {[%emt 0:02:30]} 21. g5 {[%emt 0:03:30]} (21. bxa3 $6 g5 $16) (21. Qh2 $6 Kf7 $14) (21. b3 $18) 21... Rc6 $2 {[%emt 0:02:30]} (21... axb2 $16 {was necessary.} 22. gxf6 (22. Qh2 Kf8 $16) 22... exf6) 22. gxf6 {[%emt 0:06:30]} (22. bxa3 Nd7 23. Bb2 (23. Qh2 Qe8 $16) 23... Bf7 $16) (22. Nxa3 Qa7 23. Be2 (23. Qh2 Kf8 $18) 23... Rb6 $18) (22. Qh2 axb2 23. Qh7+ (23. Qxb2 Qf8 $11) (23. Bxb2 Kf8 $16) (23. gxf6 exf6 24. Qh7+ Kf8 $18) 23... Kf8 $18) 22... exf6 {[%emt 0:00:30]} 23. b3 {[%emt 0:03:30]} (23. bxa3 Kf8 24. Be3 g5 $18) (23. Nxa3 Qa7 24. Qh2 Bf7 $16) (23. Qh2 axb2 24. Qh7+ (24. Bxb2 Kf8 $16) 24... Kf8 $18) 23... Bf7 {[%emt 0:00:30]} 24. Bc3 {[%emt 0:00:30]} (24. Qh2 Qe8 25. Nxd6 Qe7 $18) 24... Raa6 {[%emt 0:00:30]} 25. Qf4 {[%emt 0:00:30]} (25. Qh2 Qe8 26. Rd2 (26. Nxd6 Rxd6 27. Rxd6 Rxd6 $11) 26... Qd7) 25... Nd7 {[%emt 0:14:21]} 26. Rh2 {[%emt 0:16:30]} Ne5 {[%emt 0:04:43]} 27. Bxe5 {[%emt 0:00:30]} ({Don't play} 27. Qh4 $6 Nxf3 28. Qh7+ Kf8 $18) 27... fxe5 {[%emt 0:01:39]} 28. Qh4 {[%emt 0:00:30]} Qe8 {[%emt 0:01:44]} 29. Qh7+ {[%emt 0:01:30]} Kf8 {[%emt 0:00:00]} 30. Rhd2 {[%emt 0:00:30][%cal Rb5d6]} Qe7 {[%emt 0:00:46]} 31. Nc3 {[%emt 0:00:38]} Ra8 {[%emt 0:01:46]} 32. Nd5 {[%emt 0:00:22]} Bxd5 {[%emt 0:00:32]} 33. Rxd5 {[%emt 0:01:31]} (33. cxd5 $142 Rc7 34. Qxg6) 33... Kf7 $16 {[%emt 0:00:35] Threatens to win with ...Rh8. Black is weak on the light squares} 34. Qh2 {[%emt 0:01:03][%cal Oc4c5] aiming for c5! White is more active.} Rh8 {[%emt 0:00:30]} 35. Qd2 {[%emt 0:00:30]} Bf8 {[%emt 0:00:30]} 36. f4 {[%emt 0:00:30]} (36. b4 $16) 36... exf4 $14 {[%emt 0:00:30] [#]} 37. e5 $36 {[%emt 0:00:30][%cal Be4e5,Be5d6][%mdl 2080] Wards off Qf6. Strongly threatening c5. Keeping Black busy.} Bg7 $2 {[%emt 0:00:30][%mdl 8192]} (37... dxe5 $2 38. Rd7 $18) (37... Rh5 $16) 38. Qxf4+ $18 {[%emt 0:00:30]} (38. exd6 $2 {perishes.} Qf6 39. Rd4 Qxd4 40. Qxd4 Bxd4 41. Rxd4 Ke6 $19) 38... Kg8 {[%emt 0:03:50][%cal Rg7e5]} 39. exd6 {[%emt 0:01:43]} Qd8 {[%emt 0:00:55]} (39... Qf6 $142 40. Qxf6 Bxf6) 40. c5 {[%emt 0:01:04] Bc4 would kill now.} Rh4 {[%emt 0:00:07]} 41. Qf3 {[%emt 0:00:41] Weighted Error Value: White=0.38/Black=0.55} 1-0

[Event "TUR-ch U13-18 Open 2023"]
[Site "Antalya"]
[Date "2023.01.23"]
[Round "3"]
[White "Tutuncu, Ali"]
[Black "Atis, Hasan"]
[Result "1-0"]
[ECO "B26"]
[WhiteElo "1728"]
[BlackElo "1962"]
[Annotator "TA"]
[PlyCount "97"]
[EventDate "2023.01.17"]
[EventType "swiss"]
[EventCountry "TUR"]
[SourceTitle "playchess.com"]
[Source "ChessBase"]
[SourceQuality "1"]
[TimeControl "5400+30"]

{[%evp 17,97,-9,4,-14,0,-18,-9,-13,-14,-22,-26,-14,-19,-16,0,-12,-8,-45,-14,-21,-33,-24,-20,-125,-50,-70,-12,-89,-35,-38,-50,-98,-110,-141,-141,-202,-81,-183,0,0,0,0,34,0,0,-95,-110,-86,-73,-82,0,-191,-39,-22,0,0,0,0,0,-10,1527,1516,1567,1147,2787,2955,2661,2664,29983,29984,29985,29984,29987,29988,29988,29989,29989,29990,29990,29991,29991,12847]} 1. e4 {[%emt 0:01:00]} c5 {[%emt 0:01:00]} 2. Nc3 {[%emt 0:00:30]} d6 {[%emt 0:00:30]} 3. g3 {[%emt 0:00:30]} Nc6 {[%emt 0:00:30]} 4. Bg2 {[%emt 0:00:30]} g6 {[%emt 0:00:30]} 5. d3 {[%emt 0:00:00]} Bg7 {[%emt 0:00:00]} 6. Be3 {[%emt 0:00:00]} Rb8 {[%emt 0:00:00]} 7. Qd2 {[%emt 0:00:00]} b5 {[%emt 0:00:00][%cal Bb7b5,Bb5b4][%mdl 32]} 8. Nge2 {[%emt 0:00:00]} b4 {[%emt 0:05:00] The main line 8...b4 scores better than 8...Nd4.} 9. Nd1 {[%emt 0:00:00]} Nd4 {[%emt 0:00:30]} 10. h3 {[%emt 0:00:00] B26: Closed Sicilian: 3 g3, lines with early Be3.} h5 {[%emt 0:03:30]} 11. f4 {[%emt 0:00:00]} e6 {[%emt 0:01:30]} 12. O-O {[%emt 0:00:00] The position is equal.} Ne7 {[%emt 0:00:30] [#]} 13. Nc1 $146 {[%emt 0:06:30]} ({Predecessor:} 13. Bf2 f5 14. a3 b3 15. c3 Nc2 16. Rc1 Kf7 17. Ne3 Nxe3 18. Bxe3 Ba6 19. Rfe1 {0-1 Alavi Moghaddam,S (2445)-Indjic,A (2607) Tetraktys Concept Mgmt blitz 2021 (3)}) 13... O-O {[%emt 0:08:30]} 14. c3 {[%emt 0:01:30]} bxc3 {[%emt 0:01:30]} 15. bxc3 {[%emt 0:00:00]} Nb5 {[%emt 0:02:30]} 16. a4 {[%emt 0:00:00]} Nc7 {[%emt 0:00:30]} 17. Qf2 {[%emt 0:05:30]} Bb7 {[%emt 0:19:30]} 18. g4 {[%emt 0:05:30]} hxg4 {[%emt 0:03:30]} 19. hxg4 {[%emt 0:00:30]} f5 {[%emt 0:00:30]} 20. Bf3 {[%emt 0:03:30]} (20. Qc2 $11) 20... Qd7 {[%emt 0:05:30]} (20... fxe4 $17 21. dxe4 d5 22. Bxc5 dxe4) 21. Qg2 {[%emt 0:07:30]} Bc6 {[%emt 0:06:30]} (21... g5 $15 22. gxf5 (22. fxg5 f4 $17) 22... exf5 23. Qxg5 (23. fxg5 fxe4 24. Bxe4 Rxf1+ 25. Kxf1 Rf8+ 26. Kg1 Bxe4 $15) 23... Rf6) 22. Qa2 {[%emt 0:07:30]} (22. Ne2 $11) 22... Na6 {[%emt 0:10:30]} (22... c4 $17 {White must now prevent ...cxd3.} 23. gxf5 gxf5 24. Qxc4 Rf6) 23. Nb3 {[%emt 0:15:30]} Ba8 {[%emt 0:03:30]} 24. Nd2 {[%emt 0:05:30]} (24. Rb1 $15) 24... d5 $17 {[%emt 0:04:30]} (24... fxe4 {keeps more tension.} 25. Nxe4 Nd5 26. f5 Nac7) 25. gxf5 {[%emt 0:00:30]} gxf5 {[%emt 0:00:30]} 26. e5 {[%emt 0:00:30] [#]} (26. Rb1 $17) 26... Bh6 {[%emt 0:00:30]} (26... d4 $1 $19 {has better winning chances.} 27. Bxa8 dxe3 {[%mdl 64] Discovered Attack}) 27. Nb3 {[%emt 0:00:30] [#]} (27. Kf2 $17) 27... Qc7 $2 {[%emt 0:00:30]} (27... Ng6 $1 $19 {Strongly threatening ...Qg7.} 28. Nxc5 Nxc5 29. Bxc5 Rf7) 28. Qh2 $11 {[%emt 0:00:30]} Kh7 {[%emt 0:00:30]} 29. Nd2 {[%emt 0:09:30] Kf2 would be deadly.} Rh8 {[%emt 0:15:48][%cal Od5d4]} 30. Kf2 {[%emt 0:02:30]} d4 $1 {[%emt 0:00:30][%mdl 64] Deflection} 31. cxd4 {[%emt 0:00:30]} (31. Rh1 $11 {remains equal.} Kg7 32. Qh4 (32. cxd4 Bxf3 33. Nxf3 Nd5 $11) 32... dxe3+ 33. Nxe3) 31... cxd4 $17 {[%emt 0:02:17]} 32. Bxd4 {[%emt 0:00:30]} (32. Rh1 Kg8 33. Bxa8 (33. Bxd4 $2 Qc2 $19) 33... dxe3+ 34. Nxe3 Nb4 35. Rag1+ Kf8) 32... Nb4 {[%emt 0:02:55]} 33. Bxa8 {[%emt 0:02:30][%cal Of1h1]} Rxa8 {[%emt 0:01:06]} (33... Qc2 $17 34. Be3 Nxd3+ 35. Ke2 (35. Kg1 $2 Rxa8 36. Nf3 Qxh2+ 37. Nxh2 Nd5 $19) 35... Rxa8) 34. Ke2 {[%emt 0:00:30]} (34. Ne3 $11 {and White is okay.}) 34... Rag8 $2 {[%emt 0:01:16]} ({Inferior is} 34... Qc2 35. Nf2 Rac8 36. Rg1 $11 (36. Bxa7 Nbd5 $17) (36. Rh1 Kg8 $11)) ({Better is} 34... Nc2 $19 35. Bc3 (35. Nf3 $2 Nxa1 36. Qh5 Kg8 $19) 35... Nxa1 36. Bxa1 (36. Rh1 $2 Kg7 $19) 36... Ng6) 35. Ne3 $1 $15 {[%emt 0:01:30]} Ned5 {[%emt 0:00:52][%mdl 1024] Black has compensation.} 36. Rh1 {[%emt 0:01:30][%csl Gh1][%cal Rh2h6]} Rg6 {[%emt 0:00:23]} 37. Rag1 $40 {[%emt 0:00:30][%cal Oe3f5][%mdl 128] aiming for Nxf5! White mounts an attack.} Rhg8 $1 {[%emt 0:00:21] Hoping for ...Nc2.} 38. Nf3 {[%emt 0:01:30][%cal Bd2f3,Bf3g5,Bg5e6,Be6f8][%mdl 32] And now Ng5+ would win. Dancing on a razor blade.} Qg7 $2 {[%emt 0:00:57][%mdl 8192]} (38... R8g7 $11) 39. Ng5+ $18 {[%emt 0:08:10]} Kh8 {[%emt 0:00:02] [#]} 40. Nxe6 $1 {[%emt 0:00:42][%mdl 512]} Qh7 {[%emt 0:00:53]} (40... Rxe6 41. Rxg7) 41. Rxg6 {[%emt 0:00:30]} Rxg6 {[%emt 0:00:30] [#]} 42. Nf8 $1 {[%emt 0:00:00][%mdl 576] Pin, Double Attack} Nxe3 {[%emt 0:00:57]} (42... Kg8 43. Nxh7) 43. Nxh7 {[%emt 0:00:10] White mates.} Ng4 {[%emt 0:00:30]} 44. Qg2 {[%emt 0:00:30]} Nc6 {[%emt 0:00:30] [#]} 45. Qd5 $1 {[%emt 0:00:30]} Nxd4+ {[%emt 0:00:30]} 46. Qxd4 {[%emt 0:00:30]} Kxh7 {[%emt 0:00:30]} 47. Qd7+ {[%emt 0:00:30]} Rg7 {[%emt 0:00:30]} 48. Qxf5+ {[%emt 0:00:30]} Kg8 {[%emt 0:00:30]} 49. Rg1 {[%emt 0:00:30] Quite a comeback for White. Beautiful play by Tutuncu!   Weighted Error Value: White=0.26 (precise) /Black=0.38} (49. Rb1 $142 Kh8 50. e6 Rc7 51. Qxg4 Kh7 52. Rb8 Bg7 53. f5 Rc2+ 54. Kf3 Rf2+ {[%mdl 64] Decoy} 55. Kxf2 Bd4+ 56. Kg2 Bh8 57. Qg6#) 1-0

[Event "TUR-ch U13-18 Open 2023"]
[Site "Antalya"]
[Date "2023.01.23"]
[Round "3"]
[White "Karakus, Ali"]
[Black "Temizer, Umut"]
[Result "0-1"]
[ECO "B22"]
[WhiteElo "1693"]
[BlackElo "1989"]
[Annotator "TA"]
[PlyCount "64"]
[EventDate "2023.01.17"]
[EventType "swiss"]
[EventCountry "TUR"]
[SourceTitle "playchess.com"]
[Source "ChessBase"]
[SourceQuality "1"]
[TimeControl "5400+30"]

{[%evp 11,64,17,22,-4,25,45,35,54,44,-18,16,16,13,0,34,-12,-20,-17,0,-16,0,-80,-78,-75,-65,-60,-60,-139,-131,-144,-8,-9,-14,-316,-315,-314,-301,-289,-299,-844,-237,-749,-238,-234,-234,-626,-191,-212,-209,-269,-271,-487,-479,-29998,-29999]} 1. e4 {[%emt 0:01:00]} c5 {[%emt 0:02:00]} 2. c3 {[%emt 0:00:30]} d5 {[%emt 0:00:30]} 3. exd5 {[%emt 0:00:30]} Qxd5 {[%emt 0:00:30]} 4. d4 {[%emt 0:00:30]} Nf6 {[%emt 0:00:30]} 5. Nf3 {[%emt 0:00:30]} Nc6 {[%emt 0:00:30]} 6. dxc5 {[%emt 0:00:30]} Qxc5 {[%emt 0:29:30] [#]} 7. Bd3 $146 {[%emt 0:22:30] B22: Sicilian: 2 c3.} ({Predecessor:} 7. Na3 e5 8. Nb5 Qe7 9. Bg5 a6 10. Na3 h6 11. Be3 Be6 12. Nc4 Rd8 13. Qc2 Nd5 14. Be2 Nxe3 15. Nxe3 g6 {0-1 Zhigalko,S (2572)-Sarana,A (2685) Titled Tuesday intern op 22 Mar Early blitz 2022 (7)}) 7... e5 {[%emt 0:00:30] aiming for ...e4.} 8. O-O {[%emt 0:00:30]} Be7 {[%emt 0:00:30]} 9. Re1 {[%emt 0:00:30] White is slightly better.} O-O {[%emt 0:02:30]} 10. a4 {[%emt 0:03:30]} (10. Nbd2 $14) 10... Bg4 {[%emt 0:07:30]} (10... Rd8 $5 {[%cal Re5e4]} 11. b4 Qd5 $11) 11. Nbd2 {[%emt 0:07:30]} Rad8 {[%emt 0:00:30]} 12. Qc2 {[%emt 0:00:30]} Qd6 {[%emt 0:00:30]} (12... Qd5 $5 {[%cal Rd5d3]} 13. Bc4 Qd7 $15) 13. Bf1 {[%emt 0:00:30]} (13. Bb5 $14) 13... Qc7 $11 {[%emt 0:00:30]} 14. h3 {[%emt 0:00:30]} Bh5 $36 {[%emt 0:00:30][%mdl 2048] Black is pushing.} 15. Nh4 {[%emt 0:00:30]} Rfe8 {[%emt 0:00:30]} (15... Nd5 $5 {[%cal Re7h4]} 16. Nf5 Bg6 17. Nxe7+ Ndxe7 $11) 16. Ne4 {[%emt 0:00:30] [#]} (16. Bc4 $11) 16... Nd4 $1 $17 {[%emt 0:00:30][%mdl 64] Pin} 17. Nxf6+ {[%emt 0:00:30]} Bxf6 {[%emt 0:00:30][%cal Be7f6,Bf6h4,Bh4f2,Bf2d4][%mdl 32]} (17... gxf6 18. Qe4 Nb3 19. Rb1 $11) 18. Qe4 {[%emt 0:00:30]} Nb3 {[%emt 0:00:30]} 19. Ra3 {[%emt 0:00:30]} (19. Rb1 $15) 19... Nxc1 {[%emt 0:00:30]} 20. Rxc1 {[%emt 0:00:30] [#]} Rd4 {[%emt 0:00:30]} 21. cxd4 $11 {[%emt 0:00:30]} Qxc1 {[%emt 0:00:30]} 22. g4 $2 {[%emt 0:00:30][%mdl 8192] White does not recover from this.} (22. Re3 $11) 22... Bxh4 $19 {[%emt 0:00:30]} (22... exd4 $2 23. Qxe8#) (22... Qxb2 23. Rf3 Qxd4 24. Qxb7 Bxh4 25. gxh5 $17) 23. gxh5 {[%emt 0:00:30] [#]} Bxf2+ {[%emt 0:00:30][%mdl 576] Double Attack} 24. Kg2 {[%emt 0:00:30] White is weak on the dark squares} Bxd4 {[%emt 0:00:30]} (24... exd4 $2 25. Qxe8#) 25. Rb3 {[%emt 0:00:30]} (25. Rf3) 25... Qd2+ $2 {[%emt 0:00:30]} (25... Rc8 {White must now prevent ...Rc2+.} 26. Rf3 Rc2+ 27. Kg3 g6 28. hxg6 hxg6) 26. Be2 $2 {[%emt 0:00:30]} (26. Qe2 Qg5+ 27. Qg4) 26... Qe1 $2 {[%emt 0:00:30]} (26... f5 27. Qd5+ Kh8) 27. h4 {[%emt 0:00:30]} b6 {[%emt 0:00:30]} 28. Rf3 $2 {[%emt 0:00:30]} (28. a5) 28... g6 $2 {[%emt 0:00:30]} (28... Bxb2 29. Rxf7 Bd4 30. Rxa7 Qg1+ 31. Kh3 Qe3+ 32. Qxe3 Bxe3 33. Bc4+ Kh8 34. Kg4 $11) (28... Qg1+ 29. Kh3 Qh1+ 30. Kg3 Bg1) 29. hxg6 {[%emt 0:00:30]} hxg6 {[%emt 0:00:30] And now ...Qg1+ would win.} (29... Bxb2 {is a self mate.} 30. gxf7+ Kf8 31. fxe8=Q+ Kxe8 32. Qc6+ Ke7 33. Qc7+ {[%mdl 64] Skewer, Double Attack} Ke8 34. Bb5#) (29... Qg1+ 30. Kh3 hxg6 31. Bc4 Qh1+ 32. Kg3 $15) 30. Rg3 {[%emt 0:00:30][%cal Og3g6]} Kf8 {[%emt 0:00:30]} ({Stronger than} 30... Bxb2 31. Rxg6+ Kf8 32. Rh6 $11) 31. Qf3 $2 {[%emt 0:00:30]} (31. Bd3 Qxe4+ 32. Bxe4) 31... e4 {[%emt 0:00:30]} (31... Bxb2 $2 {too greedy.} 32. h5 e4 33. Qf1 Qxf1+ 34. Kxf1 $19) 32. Qg4 {[%emt 0:00:30]} (32. Qf1 $19 Qd2 33. Rb3) 32... Qg1+ {[%emt 0:00:30] A fantastic game!   Weighted Error Value: White=1.14/Black=0.78} 0-1

[Event "TUR-ch U13-18 Open 2023"]
[Site "Antalya"]
[Date "2023.01.23"]
[Round "3"]
[White "Ersoz, Teoman Guney"]
[Black "Arslan, Efe"]
[Result "1-0"]
[ECO "B76"]
[WhiteElo "1691"]
[BlackElo "1244"]
[Annotator "NA RC COMBH"]
[PlyCount "67"]
[EventDate "2023.01.17"]
[EventType "swiss"]
[EventCountry "TUR"]
[SourceTitle "playchess.com"]
[Source "ChessBase"]
[SourceQuality "1"]
[TimeControl "5400+30"]

1. e4 {[%emt 0:01:00]} c5 {[%emt 0:01:00]} 2. Nf3 {[%emt 0:00:30]} d6 {[%emt 0:00:30]} 3. d4 {[%emt 0:00:30]} cxd4 {[%emt 0:00:30]} 4. Nxd4 {[%emt 0:00:30]} Nf6 {[%emt 0:00:00]} 5. Nc3 {[%emt 0:00:00]} g6 {[%emt 0:00:00]} 6. Be3 {[%emt 0:00:00]} Bg7 {[%emt 0:00:00]} 7. f3 {[%emt 0:00:00]} Nc6 {[%emt 0:00:00]} 8. Qd2 {[%emt 0:00:00]} O-O {[%emt 0:00:00]} 9. O-O-O {[%emt 0:00:30]} Bd7 {[%emt 0:00:00]} 10. g4 {[%emt 0:00:00]} Ne5 {[%emt 0:06:30]} 11. Be2 {[%emt 0:00:00]} Rc8 {[%emt 0:01:30]} 12. h4 {[%emt 0:00:30]} Nc4 {[%emt 0:01:30]} 13. Bxc4 {[%emt 0:00:30]} Rxc4 {[%emt 0:00:00]} 14. h5 {[%emt 0:00:00]} Qa5 {[%emt 0:30:00]} 15. hxg6 {[%emt 0:04:00]} fxg6 {[%emt 0:00:30]} 16. Nb3 {[%emt 0:02:30]} Qa6 {[%emt 0:03:30]} 17. Bh6 {[%emt 0:10:30]} Bxh6 {[%emt 0:03:30]} 18. Qxh6 {[%emt 0:04:30]} Be6 {[%emt 0:29:30]} 19. g5 {[%emt 0:00:30]} Nh5 {[%emt 0:00:30]} 20. Rxh5 {[%emt 0:01:30]} gxh5 {[%emt 0:00:30]} 21. g6 {[%emt 0:01:30]} Rf7 {[%emt 0:00:30]} 22. gxf7+ {[%emt 0:00:00]} Bxf7 {[%emt 0:01:30]} 23. Rg1+ {[%emt 0:00:00]} Bg6 {[%emt 0:00:00]} 24. Qxh5 {[%emt 0:08:30]} Kf8 {[%emt 0:01:00]} 25. Qh6+ {[%emt 0:00:30]} Ke8 {[%emt 0:01:22]} 26. Kb1 {[%emt 0:04:30]} Qb6 {[%emt 0:00:26]} 27. Rd1 {[%emt 0:01:30]} Qf2 {[%emt 0:00:27]} 28. Qg7 {[%emt 0:01:30]} Kd7 {[%emt 0:04:36]} 29. Qe5 {[%emt 0:04:30]} a6 {[%emt 0:00:30]} 30. Qd5 {[%emt 0:00:30]} Rc7 {[%emt 0:04:18]} 31. Nd4 {[%emt 0:03:30]} b5 {[%emt 0:00:35]} 32. e5 {[%emt 0:02:30]} Rc5 {[%emt 0:02:41]} 33. Qe6+ {[%emt 0:00:30]} Kc7 {[%emt 0:00:47]} 34. Qxe7+ {[%emt 0:00:00]} 1-0